fUSD/lending_fUSD_20250225
["ID","MTS","AMOUNT","RATE_DAILY","PERIOD"]
[354366540,1740450633093,-3439.0326892,9.993e-05,2]
[354366541,1740450633104,-500.0,9.999e-05,2]
[354366542,1740450633114,-500.0,9.999e-05,2]
[354366543,1740450633124,-500.0,9.999e-05,2]
[354366544,1740450633135,-501.55104573,9.999e-05,2]
[354366545,1740450633145,-500.0,9.999e-05,2]
[354366546,1740450633155,-405.73586961,9.999e-05,2]
[354366547,1740450633166,-31054.52850867,0.0001,2]
[354366548,1740450633176,-224.29407083,0.0001,2]
[354366549,1740450633186,-154.67533329,0.0001,2]
[354366550,1740450633214,-6891.26719767,0.0001,2]
[354366551,1740450633227,-573.51186156,0.0001,2]
[354366552,1740450633239,-316.52362598,0.0001,2]
[354366553,1740450633252,-330.55581015,0.0001,2]
[354366554,1740450633267,-540.66512062,0.0001,2]
[354366555,1740450633280,-736.69490034,0.0001,2]
[354366556,1740450633293,-1601.46032278,0.0001,2]
[354366557,1740450633327,-15585.21127846,0.0001,2]
[354366564,1740450638232,-222.72355993,9.9e-05,2]
[354366565,1740450638241,-680.46644207,0.0001,2]
[354366566,1740450638253,-58492.98685145,0.0001,2]
[354366567,1740450638262,-190.58476177,0.0001,2]
[354366568,1740450638272,-404067.03674686,0.0001,2]
[354366569,1740450638283,-215987.88162589,0.0001,2]
[354366570,1740450638301,-5081.35710477,0.0001,2]
[354366571,1740450638399,-2181.22169619,0.0001,2]
[354366572,1740450638515,-528.12095785,0.0001,2]
[354366577,1740450640845,-23001.13075,0.0001,2]
[354366578,1740450640856,-1260.3,0.0001,2]
[354366579,1740450640867,-8471.56575124,0.0001,2]
[354366580,1740450640893,-1032.75,0.0001,2]
[354366581,1740450640919,-400.0,0.0001,2]
[354366582,1740450640934,-357.38789991,0.0001,2]
[354366584,1740450640945,-1273.216,0.0001,2]
[354366586,1740450640956,-4046.39382241,0.0001,2]
[354366817,1740450644071,-408.25030226,9.999e-05,2]
[354366818,1740450644096,-91.74969774,9.999e-05,2]
[354366819,1740450644106,-500.0,9.999e-05,2]
[354366820,1740450644115,-368.87857725,9.999e-05,2]
[354366821,1740450644125,-10706.57589331,0.0001,2]
[354366822,1740450644136,-46087.63600001,0.0001,2]
[354366823,1740450644169,-56172.06995686,0.0001,2]
[354366839,1740450646392,-2209.4317,9.9e-05,2]
[354366840,1740450646402,-102210.92215569,0.0001,2]
[354366841,1740450646413,-2519.0000009,0.0001,2]
[354366842,1740450646425,-363.66593995,0.0001,2]
[354366843,1740450646449,-5446.91978552,0.0001,2]
[354366844,1740450646460,-2241.09973302,0.0001,2]
[354366845,1740450646666,-51560.77942301,0.0001,2]
[354366846,1740450646678,-3999.42611812,0.0001,2]
[354366866,1740450927338,169.04,8.767e-05,2]
[354366869,1740451352680,313.67,9.224e-05,2]
[354366870,1740451396776,342.0,0.0002,120]
[354366871,1740451466657,1377.0,0.0002,120]
[354366872,1740451513132,166.86,9.22e-05,2]
[354366873,1740451562139,169.43,9.501e-05,2]
[354366874,1740451628658,504.68,8.219e-05,2]
[354366882,1740451641243,1000.0,9.225e-05,2]
[354366885,1740451667200,1036.69,9.218e-05,2]
[354366886,1740451707422,1234.19,9.247e-05,2]
[354366887,1740451753243,1500.0,9.271e-05,2]
[354366888,1740451788613,250.0,9.271e-05,2]
[354366889,1740451791386,3182.4,9.271e-05,2]
[354367037,1740451831500,-150.0,9.714e-05,2]
[354367039,1740451831510,-150.78842941,9.741e-05,2]
[354367040,1740451831519,-150.0,9.745e-05,2]
[354367041,1740451831529,-150.0,9.775e-05,2]
[354367043,1740451831539,-150.0,9.781e-05,2]
[354367045,1740451831548,-150.0,9.783e-05,2]
[354367047,1740451831558,-149.3248086,9.785e-05,2]
[354367050,1740451831578,-0.6751914,9.785e-05,2]
[354367052,1740451831587,-341.8869,9.8e-05,2]
[354367054,1740451831596,-150.0,9.804e-05,2]
[354367056,1740451831606,-150.0,9.816e-05,2]
[354367058,1740451831615,-150.0,9.897e-05,2]
[354367059,1740451831624,-150.99,9.897e-05,2]
[354367060,1740451831633,-150.0,9.899e-05,2]
[354367061,1740451831642,-176.53981521,9.899e-05,2]
[354367062,1740451831651,-1000.0,9.9e-05,2]
[354367063,1740451831661,-1092.1014,9.9e-05,2]
[354367064,1740451831670,-2514.0339,9.9e-05,2]
[354367065,1740451831679,-14479.6902,9.9e-05,2]
[354367066,1740451831689,-500.0,9.9e-05,2]
[354367067,1740451831698,-266.9422,9.9e-05,2]
[354367068,1740451831708,-2500.0,9.9e-05,2]
[354367069,1740451831717,-2640.0174,9.9e-05,2]
[354367070,1740451831726,-7944.0228,9.9e-05,2]
[354367071,1740451831736,-1023.535624,9.993e-05,2]
[354367072,1740451831745,-2101.8071789,9.993e-05,2]
[354367073,1740451831754,-1341.9966438,9.993e-05,2]
[354367074,1740451831763,-164.3393575,9.993e-05,2]
[354367075,1740451831777,-176.1520526,9.993e-05,2]
[354367076,1740451831786,-2254.0,0.0001,2]
[354367077,1740451831796,-51518.79589796,0.0001,2]
[354367078,1740451831809,-67543.44073619,0.0001,2]
[354367079,1740451831832,-6153.15839874,0.0001,2]
[354367080,1740451831889,-662.73596686,0.0001,2]
[354367081,1740451831900,-2721.17179243,0.0001,2]
[354367104,1740451837413,-28375.13015708,0.0001,2]
[354367105,1740451837424,-1577.667392,0.0001,2]
[354367106,1740451837467,-1099.19617938,0.0001,2]
[354367107,1740451837722,-352.10604785,0.0001,2]
[354367108,1740451837734,-1358.18879281,0.0001,2]
[354367110,1740451837746,-690.02331273,0.0001,2]
[354367112,1740451837757,-8409.57040378,0.0001,2]
[354367114,1740451837768,-2246.28288953,0.0001,2]
[354367116,1740451837780,-580.21857436,0.0001,2]
[354367120,1740451837802,-543.149359,0.0001,2]
[354367122,1740451837814,-2729.40718883,0.0001,2]
[354367126,1740451837848,-9823.98203823,0.0001,2]
[354367128,1740451837859,-5051.91947064,0.0001,2]
[354367130,1740451837870,-862.24427429,0.0001,2]
[354367132,1740451837881,-2258.99168339,0.0001,2]
[354367134,1740451837892,-274.176,0.0001,2]
[354367137,1740451837903,-1962.58,0.0001,2]
[354367139,1740451837914,-889.28858656,0.0001,2]
[354367141,1740451837925,-809.98594867,0.0001,2]
[354367143,1740451837937,-416.3300127,0.0001,2]
[354367146,1740451837957,-8186.71597945,0.0001,2]
[354367213,1740451839591,-2141.43721782,0.0001,2]
[354367214,1740451839644,-1998.25627192,0.0001,2]
[354367215,1740451839656,-23.74372808,0.0001,2]
[354367216,1740451839665,-277.39598327,0.0001,2]
[354367217,1740451839676,-2005.05270526,0.0001,2]
[354367218,1740451839687,-2314.0254947,0.0001,2]
[354367219,1740451839699,-31041.38929713,0.0001,2]
[354367220,1740451839750,-794.79791123,0.0001,2]
[354367221,1740451839806,-29643.33930656,0.0001,2]
[354367222,1740451839858,-1240773.81814295,0.0001,2]
[354367223,1740451839867,-165.83233905,0.0001,2]
[354367224,1740451839876,-174.31118642,0.0001,2]
[354367225,1740451839885,-2007.98176,0.0001,2]
[354367226,1740451839894,-224.30528553,0.0001,2]
[354367227,1740451839903,-69348.59216592,0.0001,2]
[354367228,1740451839912,-186.47819262,0.0001,2]
[354367229,1740451839921,-323.9979581,0.0001,2]
[354367230,1740451839930,-200.27420217,0.0001,2]
[354367231,1740451839939,-796.71,0.00010022,2]
[354367232,1740451839949,-796.71,0.00010094,2]
[354367233,1740451839958,-796.71,0.00010165,2]
[354367234,1740451839967,-796.71,0.00010236,2]
[354367235,1740451839976,-796.71,0.00010307,2]
[354367236,1740451839985,-785.2,0.0001036,2]
[354367237,1740451839994,-1000.0,0.00010378,2]
[354367238,1740451840004,-796.71,0.00010379,2]
[354367239,1740451840013,-1881.21,0.00010392,2]
[354367240,1740451840023,-984.31,0.00010423,2]
[354367241,1740451840032,-261.76519348,0.00010426,2]
[354367242,1740451840042,-504.68,0.00010435,2]
[354367243,1740451840051,-150.0,0.00010481,2]
[354367244,1740451840061,-667.22,0.00010485,2]
[354367245,1740451840070,-23900.0,0.00010515,2]
[354367247,1740451840081,-2000.0,0.00010518,2]
[354367249,1740451840090,-3731.87,0.00010543,2]
[354367251,1740451840099,-667.22,0.00010568,2]
[354367253,1740451840108,-500.0,0.00010585,2]
[354367255,1740451840118,-168.98,0.00010608,2]
[354367257,1740451840127,-200.0,0.00010616,2]
[354367258,1740451840136,-681.26,0.00010621,2]
[354367261,1740451840146,-667.22,0.00010651,2]
[354367263,1740451840155,-681.26,0.00010705,2]
[354367265,1740451840165,-667.22,0.00010734,2]
[354367267,1740451840174,-681.26,0.00010789,2]
[354367268,1740451840184,-667.22,0.00010816,2]
[354367270,1740451840193,-681.26,0.00010873,2]
[354367272,1740451840203,-150.0,0.0001089,2]
[354367274,1740451840212,-667.22,0.00010899,2]
[354367276,1740451840221,-163.39501266,0.000109,2]
[354367278,1740451840230,-681.26,0.00010957,2]
[354367280,1740451840239,-150.0,0.00010959,2]
[354367282,1740451840248,-667.22,0.00010982,2]
[354367284,1740451840258,-500.0,0.00010999,2]
[354367286,1740451840267,-681.26,0.00011041,2]
[354367288,1740451840276,-667.22,0.00011065,2]
[354367290,1740451840285,-169.43,0.00011069,2]
[354367292,1740451840294,-164.83,0.00011089,2]
[354367294,1740451840303,-5876.19923122,0.00011099,2]
[354367296,1740451840312,-681.26,0.00011125,2]
[354367298,1740451840321,-667.22,0.00011148,2]
[354367300,1740451840330,-681.26,0.00011209,2]
[354367301,1740451840340,-667.22,0.0001123,2]
[354367302,1740451840349,-681.26,0.00011292,2]
[354367303,1740451840359,-667.22,0.00011313,2]
[354367304,1740451840372,-681.26,0.00011376,2]
[354367305,1740451840381,-667.22,0.00011396,2]
[354367306,1740451840390,-681.26,0.0001146,2]
[354367307,1740451840399,-667.22,0.00011479,2]
[354367308,1740451840408,-1607.94,0.00011507,2]
[354367309,1740451840417,-1000.0,0.00011531,2]
[354367310,1740451840426,-681.26,0.00011544,2]
[354367311,1740451840435,-667.22,0.00011561,2]
[354367312,1740451840445,-681.26,0.00011628,2]
[354367313,1740451840456,-667.22,0.00011644,2]
[354367314,1740451840465,-785.2,0.00011655,2]
[354367315,1740451840475,-681.26,0.00011712,2]
[354367316,1740451840484,-667.22,0.00011727,2]
[354367317,1740451840493,-681.26,0.00011796,2]
[354367318,1740451840502,-667.22,0.0001181,2]
[354367319,1740451840512,-681.26,0.00011879,2]
[354367320,1740451840521,-667.22,0.00011892,2]
[354367321,1740451840531,-681.26,0.00011963,2]
[354367322,1740451840541,-667.22,0.00011975,2]
[354367323,1740451840550,-681.26,0.00012047,2]
[354367324,1740451840559,-667.22,0.00012058,2]
[354367325,1740451840568,-681.26,0.00012131,2]
[354367326,1740451840577,-2528.4691524,0.000122,2]
[354367327,1740451840586,-681.26,0.00012215,2]
[354367328,1740451840595,-233.53684015,0.000123,2]
[354367329,1740451840604,-2007.98176,0.000124,2]
[354367330,1740451840614,-5876.19923122,0.00012497,2]
[354367331,1740451840623,-1866.62,0.00012603,2]
[354367332,1740451840632,-504.68,0.00012651,2]
[354367333,1740451840640,-1000.0,0.00012684,2]
[354367334,1740451840650,-250.49294415,0.00012836,2]
[354367335,1740451840659,-785.2,0.00012951,2]
[354367336,1740451840668,-500.0,0.00013141,2]
[354367337,1740451840677,-858.37293839,0.00013141,2]
[354367338,1740451840686,-150.0,0.00013141,2]
[354367339,1740451840695,-1057.0,0.00013141,2]
[354367340,1740451840705,-500.0,0.00013168,2]
[354367341,1740451840714,-1057.0,0.00013168,2]
[354367342,1740451840723,-500.0,0.00013196,2]
[354367343,1740451840733,-1057.0,0.00013196,2]
[354367344,1740451840742,-500.0,0.00013223,2]
[354367345,1740451840751,-1057.0,0.00013223,2]
[354367346,1740451840760,-645.44472495,0.00013251,2]
[354367347,1740451840770,-1057.0,0.00013251,2]
[354367348,1740451840779,-1057.0,0.00013278,2]
[354367349,1740451840788,-40502.2012167,0.000133,2]
[354367350,1740451840798,-1057.0,0.00013305,2]
[354367351,1740451840807,-164.83,0.00013306,2]
[354367352,1740451840816,-150.0,0.00013315,2]
[354367353,1740451840825,-152.82701896,0.00013315,2]
[354367354,1740451840835,-274.79856091,0.00013315,2]
[354367355,1740451840843,-154.65046935,0.00013315,2]
[354367356,1740451840852,-150.11763338,0.00013315,2]
[354367357,1740451840862,-150.97788431,0.00013315,2]
[354367358,1740451840872,-1057.0,0.00013333,2]
[354367359,1740451840881,-1057.0,0.0001336,2]
[354367360,1740451840890,-1118.4503342,0.00013361,2]
[354367361,1740451840900,-2296.7123826,0.00013361,2]
[354367362,1740451840909,-1466.442945,0.00013361,2]
[354367363,1740451840918,-182.4074684,0.00013361,2]
[354367364,1740451840929,-196.4211067,0.00013361,2]
[354367365,1740451840939,-303.81619291,0.00013369,2]
[354367366,1740451840948,-740614.76200389,0.0001337,2]
[354367367,1740451841692,-321.81115781,0.0001337,2]
[354367368,1740451841703,-251.7,0.0001337,2]
[354367369,1740451841714,-11627.94498367,0.0001337,2]
[354367370,1740451841725,-4461.53053296,0.0001337,2]
[354367371,1740451841735,-6430.15884093,0.0001337,2]
[354367372,1740451841758,-21057.89735241,0.0001337,2]
[354367373,1740451841769,-5059.50192414,0.0001337,2]
[354367397,1740451842650,-1121.31604108,0.0001337,2]
[354367401,1740451842704,-489.29187735,0.0001337,2]
[354367402,1740451842715,-7300.0,0.0001337,2]
[354367403,1740451842759,-1872.89162855,0.0001337,2]
[354367404,1740451842770,-4672.0935327,0.0001337,2]
[354367405,1740451842781,-600.10646135,0.0001337,2]
[354367406,1740451843381,-41488.29125841,0.0001337,2]
[354367407,1740451843396,-28893.6633825,0.0001337,2]
[354367408,1740451843410,-1372.9693829,0.0001337,2]
[354367409,1740451843422,-359.73856219,0.0001337,2]
[354367414,1740451845495,-759.0263681,9.9e-05,2]
[354367415,1740451845504,-1000.0,9.9e-05,2]
[354367416,1740451845514,-1829.0,0.0001,2]
[354367417,1740451845523,-57815.11782666,0.0001337,2]
[354367418,1740451845548,-11899.13266237,0.0001337,2]
[354367419,1740451845559,-8910.64716388,0.0001337,2]
[354367420,1740451845603,-683.97923135,0.0001337,2]
[354367421,1740451845818,-3618.1241858,0.0001337,2]
[354367422,1740451845829,-32900.11404279,0.0001337,2]
[354367423,1740451845848,-576.80466297,0.0001337,2]
[354367424,1740451845910,-301.51702746,0.0001337,2]
[354367425,1740451845921,-936.65014387,0.0001337,2]
[354367427,1740452226218,154.83,8.767e-05,2]
[354367780,1740453031990,-150.0,9.899e-05,2]
[354367781,1740453032000,-176.5398152,9.899e-05,2]
[354367782,1740453032009,-500.0,9.9e-05,2]
[354367783,1740453032018,-16468.1325,9.9e-05,2]
[354367784,1740453032028,-62899.8004,9.9e-05,2]
[354367785,1740453032037,-3231.12734343,0.00011254,2]
[354367786,1740453032047,-2450.9860278,0.000122,2]
[354367787,1740453032057,-450.61,0.00012279,2]
[354367788,1740453032066,-23900.0,0.00012359,2]
[354367789,1740453032075,-1500.0,0.00012424,2]
[354367790,1740453032084,-3885.6055,0.00012939,2]
[354367791,1740453032093,-5908.10452844,0.00013085,2]
[354367792,1740453032103,-3927.06,0.00013212,2]
[354367793,1740453032113,-1000.0,0.00013251,2]
[354367794,1740453032122,-250.0,0.00013251,2]
[354367795,1740453032132,-1823.0041,0.0001327,2]
[354367796,1740453032141,-1096.7287,0.0001327,2]
[354367797,1740453032150,-1534.476,0.0001327,2]
[354367798,1740453032160,-2149.2389162,0.0001336,2]
[354367799,1740453032169,-658.91664574,0.0001336,2]
[354367800,1740453032178,-2024.0944299,0.0001336,2]
[354367801,1740453032187,-4242.1722202,0.0001336,2]
[354367802,1740453032196,-500.0,0.00013369,2]
[354367803,1740453032206,-32315.21235286,0.0001337,2]
[354367831,1740453037995,-5085.51571862,9.849e-05,2]
[354367969,1740453040005,-188.25046438,9.849e-05,2]
[354367970,1740453040015,-5374.47964026,0.0001337,2]
[354367992,1740453042872,-9268.8868907,0.0001337,2]
[354367993,1740453042960,-1266.73238712,0.0001337,2]
[354368003,1740453226080,153.5,8.767e-05,2]
[354368017,1740454186859,583.47417671,0.0002,120]
[354368547,1740454231924,-594.135851,9.948e-05,2]
[354368549,1740454231933,-106.979149,9.999e-05,2]
[354368558,1740454232033,-193.020851,9.999e-05,2]
[354368559,1740454232042,-545.259149,0.0001,2]
[354368560,1740454232053,-256534.82205345,0.0001,2]
[354368561,1740454232089,-1527.45052351,0.0001,2]
[354368562,1740454232100,-301.09129853,0.0001,2]
[354368563,1740454232111,-613.32961624,0.0001,2]
[354368564,1740454232148,-592.3418551,0.0001,2]
[354368565,1740454232160,-13188.38813449,0.0001,2]
[354368566,1740454232174,-64668.69553476,0.0001,2]
[354368567,1740454232185,-6759.06308667,0.0001,2]
[354368568,1740454232196,-255.97559429,0.0001,2]
[354368569,1740454232261,-27324.28262775,0.0001,2]
[354368570,1740454232270,-23206.53730646,0.0001,2]
[354368573,1740454237896,-720.9341478,0.0001,2]
[354368574,1740454237908,-4004.05588479,0.0001,2]
[354368575,1740454237918,-15336.60146181,0.0001,2]
[354368576,1740454237929,-163.39501262,0.000109,2]
[354368577,1740454237939,-420.0,0.00010999,2]
[354368578,1740454237949,-6014.0269442,0.0001184,2]
[354368579,1740454237958,-323.99795805,0.000119,2]
[354368580,1740454237968,-5000.0,0.00012,2]
[354368581,1740454237978,-232.0,0.00012,2]
[354368582,1740454237989,-368.0,0.00012,2]
[354368583,1740454237999,-749.0,0.00012,2]
[354368584,1740454238009,-587.0,0.00012099,2]
[354368585,1740454238019,-2376.08567426,0.000122,2]
[354368586,1740454238029,-500.0,0.0001327,2]
[354368587,1740454238039,-823.0,0.00013309,2]
[354368588,1740454238049,-1481.7045925,0.0001336,2]
[354368589,1740454238059,-3105.4114709,0.0001336,2]
[354368590,1740454238069,-558.51329472,0.00013361,2]
[354368591,1740454238086,-1014.80123328,0.00013361,2]
[354368592,1740454238096,-8713.3351026,0.0001337,2]
[354368593,1740454238120,-33194.24571153,0.0001337,2]
[354368594,1740454238132,-680.60905594,0.0001337,2]
[354368595,1740454238149,-318.46501115,0.0001337,2]
[354368778,1740454239932,-666.0,0.0001337,2]
[354368780,1740454239944,-4055.43180006,0.0001337,2]
[354368791,1740454239989,-14426.60122145,0.0001337,2]
[354368794,1740454240000,-150.99,0.0001337,2]
[354368797,1740454240010,-1338.6545,0.0001337,2]
[354368800,1740454240020,-474.12831636,0.0001353,2]
[354368802,1740454240029,-1088.31429157,0.00013569,4]
[354368804,1740454240039,-828.25415682,0.00013622,2]
[354368806,1740454240049,-158.63,0.00013699,2]
[354368808,1740454240058,-1549.62,0.000137,2]
[354368810,1740454240067,-402.2258048,0.000137,2]
[354368812,1740454240079,-802.98904244,0.000137,2]
[354368815,1740454240097,-344.40515276,0.000137,2]
[354368817,1740454240107,-275.69484724,0.00013763,2]
[354368819,1740454240119,-152.37515276,0.00013763,2]
[354368821,1740454240128,-170.68,0.00013806,2]
[354368823,1740454240138,-6014.02694411,0.00014171,2]
[354368826,1740454240153,-500.0,0.00014597,2]
[354368828,1740454240164,-150.0,0.00014597,2]
[354368830,1740454240178,-176.07461407,0.000148,2]
[354368832,1740454240190,-2062.30540681,0.000148,2]
[354368834,1740454240199,-675.43,0.00014904,2]
[354368836,1740454240212,-200.0,0.00014963,2]
[354368838,1740454240222,-930.46459319,0.00015,2]
[354368840,1740454240233,-697.53540681,0.00015,2]
[354368842,1740454240243,-150.34,0.00015068,2]
[354368844,1740454240252,-35142.41632016,0.000151,2]
[354368847,1740454240272,-1324.48079035,0.000151,2]
[354368873,1740454240483,-5440.41100834,0.000151,2]
[354368876,1740454240522,-500.0,0.00015431,2]
[354368878,1740454240531,-1179.12,0.00015443,2]
[354368880,1740454240541,-2000.0,0.00015509,2]
[354368882,1740454240550,-1482.62,0.00015546,2]
[354368884,1740454240560,-1610.85,0.00015586,2]
[354368886,1740454240569,-166.86,0.00015608,2]
[354368888,1740454240579,-163.39501262,0.000157,2]
[354368890,1740454240588,-250.0,0.00015801,2]
[354368892,1740454240597,-200.0,0.00015805,2]
[354368894,1740454240608,-150.0,0.00015886,2]
[354368896,1740454240617,-1000.0,0.00015889,2]
[354368898,1740454240627,-279.79750261,0.00016,2]
[354368900,1740454240636,-23900.0,0.0001601,2]
[354368901,1740454240646,-428.07,0.00016026,2]
[354368902,1740454240656,-150.34,0.00016438,2]
[354368903,1740454240665,-152.11,0.00016438,2]
[354368904,1740454240675,-501.46824152,0.000165,2]
[354368905,1740454240685,-6014.02694411,0.00016502,2]
[354368906,1740454240697,-675.43,0.00016767,2]
[354368907,1740454240707,-5950.08237994,0.0001688,2]
[354368908,1740454240716,-3051.664,0.00017084,2]
[354368909,1740454240726,-170.576,0.00017084,2]
[354368911,1740454240737,-150.06937693,0.0001715,2]
[354368913,1740454240747,-1000.0,0.00017166,2]
[354368915,1740454240757,-1000.0,0.00017166,2]
[354368917,1740454240766,-1000.0,0.00017166,2]
[354368919,1740454240776,-1000.0,0.00017166,2]
[354368921,1740454240787,-1000.0,0.00017166,2]
[354368923,1740454240798,-1000.0,0.00017166,2]
[354368925,1740454240809,-1000.0,0.00017166,2]
[354368927,1740454240819,-306.0,0.00017166,2]
[354368929,1740454240830,-255.69902481,0.00017194,2]
[354368931,1740454240839,-581.0,0.00017194,2]
[354368933,1740454240849,-170.23816831,0.000172,2]
[354368935,1740454240866,-581.0,0.00017221,2]
[354368937,1740454240875,-581.0,0.00017249,2]
[354368939,1740454240885,-500.74770305,0.00017253,2]
[354368941,1740454240894,-581.0,0.00017276,2]
[354368943,1740454240906,-581.0,0.00017304,2]
[354368945,1740454240915,-581.0,0.00017331,2]
[354368947,1740454240924,-500.0,0.00017357,2]
[354368948,1740454240933,-493.28810678,0.00017357,2]
[354368950,1740454240942,-239.18171458,0.00017357,2]
[354368953,1740454240954,-260.81828542,0.00017357,2]
[354368954,1740454240963,-581.0,0.00017358,2]
[354368956,1740454240972,-132.73697612,0.00017386,2]
[354369018,1740454243910,-1084.6571519,0.00013361,2]
[354369019,1740454243919,-448.26302388,0.00017386,2]
[354369020,1740454243929,-581.0,0.00017413,2]
[354369021,1740454243939,-581.0,0.00017441,2]
[354369022,1740454243948,-581.0,0.00017468,2]
[354369023,1740454243958,-581.0,0.00017495,2]
[354369024,1740454243968,-9732.87982422,0.00017505,2]
[354369025,1740454244094,-925.44532631,0.00017505,2]
[354369026,1740454244106,-451.22072221,0.00017505,2]
[354369027,1740454244142,-856.92960368,0.00017505,2]
[354369030,1740454245753,169.61,8.767e-05,2]
[354369031,1740454245926,-319.6033,9.9e-05,2]
[354369032,1740454245942,-1671.51758912,0.00017505,2]
[354369033,1740454245961,-9252.25523992,0.00017505,2]
[354369034,1740454245986,-595.14299454,0.00017505,2]
[354369035,1740454246002,-473.2622003,0.00017505,2]
[354369048,1740454246891,-778.5966997,0.00017505,2]
[354369049,1740454246900,-581.0,0.00017523,2]
[354369050,1740454246911,-581.0,0.0001755,2]
[354369051,1740454246920,-581.0,0.00017578,2]
[354369052,1740454246929,-581.0,0.00017605,2]
[354369053,1740454246939,-152.11,0.00017613,2]
[354369054,1740454246948,-581.0,0.00017632,2]
[354369055,1740454246957,-581.0,0.0001766,2]
[354369056,1740454246966,-581.0,0.00017687,2]
[354369057,1740454246975,-3699.10462599,0.00017688,3]
[354369058,1740454246986,-500.0,0.00017688,3]
[354369059,1740454247024,-646.87343854,0.00017688,3]
[354369060,1740454247034,-589.78370893,0.00017715,2]
[354369061,1740454247043,-1000.0,0.00017875,2]
[354369062,1740454247052,-200.0,0.00018082,2]
[354369063,1740454247062,-428.07,0.0001829,2]
[354369064,1740454247070,-1338.65451,0.0001837,2]
[354369065,1740454247080,-675.43,0.0001863,2]
[354369066,1740454247089,-152.11,0.00018787,2]
[354369067,1740454247098,-6014.02694411,0.00018833,2]
[354369068,1740454247107,-366.86,0.00019151,2]
[354369069,1740454247116,-3236.22,0.00019178,2]
[354369070,1740454247125,-221.0,0.00019179,2]
[354369071,1740454247134,-151.0,0.0001928,2]
[354369072,1740454247143,-151.0,0.0001928,2]
[354369073,1740454247152,-151.0,0.0001928,2]
[354369074,1740454247161,-7500.0,0.00019289,2]
[354369075,1740454247172,-52104.50887801,0.00019289,2]
[354369076,1740454247185,-3450.49112199,0.00019289,2]
[354369077,1740454247194,-716.13298852,0.0001929,2]
[354369078,1740454247206,-1160.86701148,0.0001929,2]
[354369079,1740454247216,-1048.36270082,0.000193,2]
[354369080,1740454247225,-345.39,0.00019397,30]
[354369081,1740454247234,-17103.3706,0.000194,2]
[354369082,1740454247244,-1000.0,0.000194,2]
[354369083,1740454247254,-501.01245485,0.00019473,2]
[354369084,1740454247263,-500.0,0.000195,2]
[354369085,1740454247272,-500.0,0.000195,2]
[354369086,1740454247281,-500.0,0.000195,2]
[354369087,1740454247290,-695.52475248,0.000195,2]
[354369088,1740454247299,-500.0,0.000195,2]
[354369089,1740454247308,-500.0,0.000195,2]
[354369090,1740454247317,-500.0,0.000195,2]
[354369091,1740454247326,-500.0,0.000195,2]
[354369092,1740454247335,-500.0,0.000195,2]
[354369093,1740454247345,-500.0,0.000195,2]
[354369094,1740454247355,-6.07248022,0.000195,2]
[354369095,1740454247366,-493.92751978,0.000195,2]
[354369096,1740454247375,-500.0,0.000195,2]
[354369097,1740454247384,-500.0,0.000195,2]
[354369098,1740454247393,-500.0,0.000195,2]
[354369099,1740454247402,-500.0,0.000195,2]
[354369100,1740454247412,-500.0,0.000195,2]
[354369101,1740454247421,-500.0,0.000195,2]
[354369102,1740454247430,-500.0,0.000195,2]
[354369103,1740454247439,-417.67248022,0.000195,2]
[354369104,1740454247451,-82.32751978,0.000195,2]
[354369105,1740454247461,-500.0,0.000195,2]
[354369106,1740454247470,-500.0,0.000195,2]
[354369107,1740454247479,-500.0,0.000195,2]
[354369108,1740454247489,-500.0,0.000195,2]
[354369109,1740454247499,-500.0,0.000195,2]
[354369110,1740454247508,-500.0,0.000195,2]
[354369111,1740454247517,-500.0,0.000195,2]